Workbook

Sheet DATA
A1: Date | B1: Kilométrage véhicule | C1: Plaque Véhicule | D1: Litres enlevés | E1: Dernier passage | F1: Dernier plein réalisé | G1: Dernier relevé kilométrique | H1: Moyenne de consommation
A2: 2021-05-29 | B2: 97330 | C2: 3.SJC.633 | D2: 54.2 | E2: =passage(Tableau2[[#This Row],[Plaque Véhicule]]) ->  | F2: =litres(Tableau2[[#This Row],[Plaque Véhicule]]) ->  | G2: =kilom(Tableau2[[#This Row],[Plaque Véhicule]]) ->  | H2: =IFERROR(Tableau2[[#This Row],[Dernier plein réalisé]]/(Tableau2[[#This Row],[Kilométrage véhicule]]-Tableau2[[#This Row],[Dernier relevé kilométrique]])*100,"") -> 
A3: 2021-06-16 | B3: 0 | C3: 3.RKC.457 | D3: 0.2 | E3: =passage(Tableau2[[#This Row],[Plaque Véhicule]]) ->  | F3: =litres(Tableau2[[#This Row],[Plaque Véhicule]]) ->  | G3: =kilom(Tableau2[[#This Row],[Plaque Véhicule]]) ->  | H3: =IFERROR(Tableau2[[#This Row],[Dernier plein réalisé]]/(Tableau2[[#This Row],[Kilométrage véhicule]]-Tableau2[[#This Row],[Dernier relevé kilométrique]])*100,"") ->  | J3: Alt + F11 et aller dans Module1 pour voir les codes des 3 fonctions personnalisées
A4: 2021-06-17 | B4: 219339 | C4: 3.XKS.363 | D4: 78.57 | E4: =passage(Tableau2[[#This Row],[Plaque Véhicule]]) ->  | F4: =litres(Tableau2[[#This Row],[Plaque Véhicule]]) ->  | G4: =kilom(Tableau2[[#This Row],[Plaque Véhicule]]) ->  | H4: =IFERROR(Tableau2[[#This Row],[Dernier plein réalisé]]/(Tableau2[[#This Row],[Kilométrage véhicule]]-Tableau2[[#This Row],[Dernier relevé kilométrique]])*100,"") -> 
A5: 2021-06-18 | B5: 147860 | C5: 3.LXX.700 | D5: 38.81 | E5: =passage(Tableau2[[#This Row],[Plaque Véhicule]]) ->  | F5: =litres(Tableau2[[#This Row],[Plaque Véhicule]]) ->  | G5: =kilom(Tableau2[[#This Row],[Plaque Véhicule]]) ->  | H5: =IFERROR(Tableau2[[#This Row],[Dernier plein réalisé]]/(Tableau2[[#This Row],[Kilométrage véhicule]]-Tableau2[[#This Row],[Dernier relevé kilométrique]])*100,"") -> 
A6: 2021-06-18 | B6: 28700 | C6: 3.ACM.349 | D6: 40.38 | E6: =passage(Tableau2[[#This Row],[Plaque Véhicule]]) ->  | F6: =litres(Tableau2[[#This Row],[Plaque Véhicule]]) ->  | G6: =kilom(Tableau2[[#This Row],[Plaque Véhicule]]) ->  | H6: =IFERROR(Tableau2[[#This Row],[Dernier plein réalisé]]/(Tableau2[[#This Row],[Kilométrage véhicule]]-Tableau2[[#This Row],[Dernier relevé kilométrique]])*100,"") -> 
A7: 2021-06-18 | B7: 1 | C7: 3.NCZ.884 | D7: 66.1 | E7: =passage(Tableau2[[#This Row],[Plaque Véhicule]]) ->  | F7: =litres(Tableau2[[#This Row],[Plaque Véhicule]]) ->  | G7: =kilom(Tableau2[[#This Row],[Plaque Véhicule]]) ->  | H7: =IFERROR(Tableau2[[#This Row],[Dernier plein réalisé]]/(Tableau2[[#This Row],[Kilométrage véhicule]]-Tableau2[[#This Row],[Dernier relevé kilométrique]])*100,"") ->  | J7: Attention beaucoup de kilométrages erronés d'où une moyenne négative !!!
A8: 2021-06-18 | B8: 60000 | C8: 3.QXC.357 | D8: 55.74 | E8: =passage(Tableau2[[#This Row],[Plaque Véhicule]]) ->  | F8: =litres(Tableau2[[#This Row],[Plaque Véhicule]]) ->  | G8: =kilom(Tableau2[[#This Row],[Plaque Véhicule]]) ->  | H8: =IFERROR(Tableau2[[#This Row],[Dernier plein réalisé]]/(Tableau2[[#This Row],[Kilométrage véhicule]]-Tableau2[[#This Row],[Dernier relevé kilométrique]])*100,"") ->  | J8: ces lignes ave cproblème sont mises en rouge par MFC
A9: 2021-06-18 | B9: 116177 | C9: 3.UNX.398 | D9: 36.82 | E9: =passage(Tableau2[[#This Row],[Plaque Véhicule]]) ->  | F9: =litres(Tableau2[[#This Row],[Plaque Véhicule]]) ->  | G9: =kilom(Tableau2[[#This Row],[Plaque Véhicule]]) ->  | H9: =IFERROR(Tableau2[[#This Row],[Dernier plein réalisé]]/(Tableau2[[#This Row],[Kilométrage véhicule]]-Tableau2[[#This Row],[Dernier relevé kilométrique]])*100,"") -> 
A10: 2021-06-18 | B10: 98280 | C10: 3.SJC.633 | D10: 61.6 | E10: =passage(Tableau2[[#This Row],[Plaque Véhicule]]) -> 2021-05-29 | F10: =litres(Tableau2[[#This Row],[Plaque Véhicule]]) -> 54.2 | G10: =kilom(Tableau2[[#This Row],[Plaque Véhicule]]) -> 97330 | H10: =IFERROR(Tableau2[[#This Row],[Dernier plein réalisé]]/(Tableau2[[#This Row],[Kilométrage véhicule]]-Tableau2[[#This Row],[Dernier relevé kilométrique]])*100,"") -> 5.705263158
A11: 2021-06-19 | B11: 48210 | C11: 3.QRM.682 | D11: 46.24 | E11: =passage(Tableau2[[#This Row],[Plaque Véhicule]]) ->  | F11: =litres(Tableau2[[#This Row],[Plaque Véhicule]]) ->  | G11: =kilom(Tableau2[[#This Row],[Plaque Véhicule]]) ->  | H11: =IFERROR(Tableau2[[#This Row],[Dernier plein réalisé]]/(Tableau2[[#This Row],[Kilométrage véhicule]]-Tableau2[[#This Row],[Dernier relevé kilométrique]])*100,"") -> 
A12: 2021-06-21 | B12: 1 | C12: 1.TAX.095 | D12: 69.74 | E12: =passage(Tableau2[[#This Row],[Plaque Véhicule]]) ->  | F12: =litres(Tableau2[[#This Row],[Plaque Véhicule]]) ->  | G12: =kilom(Tableau2[[#This Row],[Plaque Véhicule]]) ->  | H12: =IFERROR(Tableau2[[#This Row],[Dernier plein réalisé]]/(Tableau2[[#This Row],[Kilométrage véhicule]]-Tableau2[[#This Row],[Dernier relevé kilométrique]])*100,"") -> 
A13: 2021-06-22 | B13: 160347 | C13: 3.XAL.248 | D13: 57.2 | E13: =passage(Tableau2[[#This Row],[Plaque Véhicule]]) ->  | F13: =litres(Tableau2[[#This Row],[Plaque Véhicule]]) ->  | G13: =kilom(Tableau2[[#This Row],[Plaque Véhicule]]) ->  | H13: =IFERROR(Tableau2[[#This Row],[Dernier plein réalisé]]/(Tableau2[[#This Row],[Kilométrage véhicule]]-Tableau2[[#This Row],[Dernier relevé kilométrique]])*100,"") -> 
A14: 2021-06-23 | B14: 132572 | C14: 3.SPH.860 | D14: 52 | E14: =passage(Tableau2[[#This Row],[Plaque Véhicule]]) ->  | F14: =litres(Tableau2[[#This Row],[Plaque Véhicule]]) ->  | G14: =kilom(Tableau2[[#This Row],[Plaque Véhicule]]) ->  | H14: =IFERROR(Tableau2[[#This Row],[Dernier plein réalisé]]/(Tableau2[[#This Row],[Kilométrage véhicule]]-Tableau2[[#This Row],[Dernier relevé kilométrique]])*100,"") -> 
A15: 2021-06-23 | B15: 21397 | C15: 3.XAA.223 | D15: 75.32 | E15: =passage(Tableau2[[#This Row],[Plaque Véhicule]]) ->  | F15: =litres(Tableau2[[#This Row],[Plaque Véhicule]]) ->  | G15: =kilom(Tableau2[[#This Row],[Plaque Véhicule]]) ->  | H15: =IFERROR(Tableau2[[#This Row],[Dernier plein réalisé]]/(Tableau2[[#This Row],[Kilométrage véhicule]]-Tableau2[[#This Row],[Dernier relevé kilométrique]])*100,"") -> 
A16: 2021-06-23 | B16: 32243 | C16: 3.QAP.233 | D16: 64.68 | E16: =passage(Tableau2[[#This Row],[Plaque Véhicule]]) ->  | F16: =litres(Tableau2[[#This Row],[Plaque Véhicule]]) ->  | G16: =kilom(Tableau2[[#This Row],[Plaque Véhicule]]) ->  | H16: =IFERROR(Tableau2[[#This Row],[Dernier plein réalisé]]/(Tableau2[[#This Row],[Kilométrage véhicule]]-Tableau2[[#This Row],[Dernier relevé kilométrique]])*100,"") -> 
A17: 2021-06-23 | B17: 69312 | C17: 3.JXX.096 | D17: 71.73 | E17: =passage(Tableau2[[#This Row],[Plaque Véhicule]]) ->  | F17: =litres(Tableau2[[#This Row],[Plaque Véhicule]]) ->  | G17: =kilom(Tableau2[[#This Row],[Plaque Véhicule]]) ->  | H17: =IFERROR(Tableau2[[#This Row],[Dernier plein réalisé]]/(Tableau2[[#This Row],[Kilométrage véhicule]]-Tableau2[[#This Row],[Dernier relevé kilométrique]])*100,"") -> 
A18: 2021-06-23 | B18: 98901 | C18: 3.SJC.633 | D18: 57.87 | E18: =passage(Tableau2[[#This Row],[Plaque Véhicule]]) -> 2021-06-18 | F18: =litres(Tableau2[[#This Row],[Plaque Véhicule]]) -> 61.6 | G18: =kilom(Tableau2[[#This Row],[Plaque Véhicule]]) -> 98280 | H18: =IFERROR(Tableau2[[#This Row],[Dernier plein réalisé]]/(Tableau2[[#This Row],[Kilométrage véhicule]]-Tableau2[[#This Row],[Dernier relevé kilométrique]])*100,"") -> 9.919484702
A19: 2021-06-24 | B19: 86580 | C19: 3.NZS.350 | D19: 36.01 | E19: =passage(Tableau2[[#This Row],[Plaque Véhicule]]) ->  | F19: =litres(Tableau2[[#This Row],[Plaque Véhicule]]) ->  | G19: =kilom(Tableau2[[#This Row],[Plaque Véhicule]]) ->  | H19: =IFERROR(Tableau2[[#This Row],[Dernier plein réalisé]]/(Tableau2[[#This Row],[Kilométrage véhicule]]-Tableau2[[#This Row],[Dernier relevé kilométrique]])*100,"") -> 
A20: 2021-06-24 | B20: 73680 | C20: 3.RKC.457 | D20: 71.78 | E20: =passage(Tableau2[[#This Row],[Plaque Véhicule]]) -> 2021-06-16 | F20: =litres(Tableau2[[#This Row],[Plaque Véhicule]]) -> 0.2 | G20: =kilom(Tableau2[[#This Row],[Plaque Véhicule]]) ->  | H20: =IFERROR(Tableau2[[#This Row],[Dernier plein réalisé]]/(Tableau2[[#This Row],[Kilométrage véhicule]]-Tableau2[[#This Row],[Dernier relevé kilométrique]])*100,"") -> 
A21: 2021-06-25 | B21: 148591 | C21: 3.LXX.700 | D21: 44.22 | E21: =passage(Tableau2[[#This Row],[Plaque Véhicule]]) -> 2021-06-18 | F21: =litres(Tableau2[[#This Row],[Plaque Véhicule]]) -> 38.81 | G21: =kilom(Tableau2[[#This Row],[Plaque Véhicule]]) -> 147860 | H21: =IFERROR(Tableau2[[#This Row],[Dernier plein réalisé]]/(Tableau2[[#This Row],[Kilométrage véhicule]]-Tableau2[[#This Row],[Dernier relevé kilométrique]])*100,"") -> 5.309165527
A22: 2021-06-25 | B22: 29470 | C22: 3.ACM.349 | D22: 45.16 | E22: =passage(Tableau2[[#This Row],[Plaque Véhicule]]) -> 2021-06-18 | F22: =litres(Tableau2[[#This Row],[Plaque Véhicule]]) -> 40.38 | G22: =kilom(Tableau2[[#This Row],[Plaque Véhicule]]) -> 28700 | H22: =IFERROR(Tableau2[[#This Row],[Dernier plein réalisé]]/(Tableau2[[#This Row],[Kilométrage véhicule]]-Tableau2[[#This Row],[Dernier relevé kilométrique]])*100,"") -> 5.244155844
A23: 2021-06-25 | B23: 285221 | C23: 3.CVC.067 | D23: 58.97 | E23: =passage(Tableau2[[#This Row],[Plaque Véhicule]]) ->  | F23: =litres(Tableau2[[#This Row],[Plaque Véhicule]]) ->  | G23: =kilom(Tableau2[[#This Row],[Plaque Véhicule]]) ->  | H23: =IFERROR(Tableau2[[#This Row],[Dernier plein réalisé]]/(Tableau2[[#This Row],[Kilométrage véhicule]]-Tableau2[[#This Row],[Dernier relevé kilométrique]])*100,"") -> 
A24: 2021-06-25 | B24: 61000 | C24: 3.QXC.357 | D24: 54.2 | E24: =passage(Tableau2[[#This Row],[Plaque Véhicule]]) -> 2021-06-18 | F24: =litres(Tableau2[[#This Row],[Plaque Véhicule]]) -> 55.74 | G24: =kilom(Tableau2[[#This Row],[Plaque Véhicule]]) -> 60000 | H24: =IFERROR(Tableau2[[#This Row],[Dernier plein réalisé]]/(Tableau2[[#This Row],[Kilométrage véhicule]]-Tableau2[[#This Row],[Dernier relevé kilométrique]])*100,"") -> 5.574
A25: 2021-06-25 | B25: 61000 | C25: 3.QXC.357 | D25: 0.2 | E25: =passage(Tableau2[[#This Row],[Plaque Véhicule]]) -> 2021-06-25 | F25: =litres(Tableau2[[#This Row],[Plaque Véhicule]]) -> 54.2 | G25: =kilom(Tableau2[[#This Row],[Plaque Véhicule]]) -> 61000 | H25: =IFERROR(Tableau2[[#This Row],[Dernier plein réalisé]]/(Tableau2[[#This Row],[Kilométrage véhicule]]-Tableau2[[#This Row],[Dernier relevé kilométrique]])*100,"") -> 
A26: 2021-06-25 | B26: 116440 | C26: 3.LCS.384 | D26: 58.92 | E26: =passage(Tableau2[[#This Row],[Plaque Véhicule]]) ->  | F26: =litres(Tableau2[[#This Row],[Plaque Véhicule]]) ->  | G26: =kilom(Tableau2[[#This Row],[Plaque Véhicule]]) ->  | H26: =IFERROR(Tableau2[[#This Row],[Dernier plein réalisé]]/(Tableau2[[#This Row],[Kilométrage véhicule]]-Tableau2[[#This Row],[Dernier relevé kilométrique]])*100,"") -> 
A27: 2021-06-26 | B27: 247224 | C27: 2.TAX.033 | D27: 69.62 | E27: =passage(Tableau2[[#This Row],[Plaque Véhicule]]) ->  | F27: =litres(Tableau2[[#This Row],[Plaque Véhicule]]) ->  | G27: =kilom(Tableau2[[#This Row],[Plaque Véhicule]]) ->  | H27: =IFERROR(Tableau2[[#This Row],[Dernier plein réalisé]]/(Tableau2[[#This Row],[Kilométrage véhicule]]-Tableau2[[#This Row],[Dernier relevé kilométrique]])*100,"") -> 
A28: 2021-06-27 | B28: 48889 | C28: 3.QRM.682 | D28: 45.05 | E28: =passage(Tableau2[[#This Row],[Plaque Véhicule]]) -> 2021-06-19 | F28: =litres(Tableau2[[#This Row],[Plaque Véhicule]]) -> 46.24 | G28: =kilom(Tableau2[[#This Row],[Plaque Véhicule]]) -> 48210 | H28: =IFERROR(Tableau2[[#This Row],[Dernier plein réalisé]]/(Tableau2[[#This Row],[Kilométrage véhicule]]-Tableau2[[#This Row],[Dernier relevé kilométrique]])*100,"") -> 6.810014728
A29: 2021-06-28 | B29: 21752 | C29: 3.XAA.223 | D29: 64.02 | E29: =passage(Tableau2[[#This Row],[Plaque Véhicule]]) -> 2021-06-23 | F29: =litres(Tableau2[[#This Row],[Plaque Véhicule]]) -> 75.32 | G29: =kilom(Tableau2[[#This Row],[Plaque Véhicule]]) -> 21397 | H29: =IFERROR(Tableau2[[#This Row],[Dernier plein réalisé]]/(Tableau2[[#This Row],[Kilométrage véhicule]]-Tableau2[[#This Row],[Dernier relevé kilométrique]])*100,"") -> 21.21690141
A30: 2021-06-28 | B30: 44514 | C30: 3.QNU.352 | D30: 89.56 | E30: =passage(Tableau2[[#This Row],[Plaque Véhicule]]) ->  | F30: =litres(Tableau2[[#This Row],[Plaque Véhicule]]) ->  | G30: =kilom(Tableau2[[#This Row],[Plaque Véhicule]]) ->  | H30: =IFERROR(Tableau2[[#This Row],[Dernier plein réalisé]]/(Tableau2[[#This Row],[Kilométrage véhicule]]-Tableau2[[#This Row],[Dernier relevé kilométrique]])*100,"") -> 
A31: 2021-06-28 | B31: 21752 | C31: 3.SJC.632 | D31: 64.02 | E31: =passage(Tableau2[[#This Row],[Plaque Véhicule]]) ->  | F31: =litres(Tableau2[[#This Row],[Plaque Véhicule]]) ->  | G31: =kilom(Tableau2[[#This Row],[Plaque Véhicule]]) ->  | H31: =IFERROR(Tableau2[[#This Row],[Dernier plein réalisé]]/(Tableau2[[#This Row],[Kilométrage véhicule]]-Tableau2[[#This Row],[Dernier relevé kilométrique]])*100,"") -> 
A32: 2021-06-29 | B32: 144638 | C32: 3.RKC.457 | D32: 72.16 | E32: =passage(Tableau2[[#This Row],[Plaque Véhicule]]) -> 2021-06-24 | F32: =litres(Tableau2[[#This Row],[Plaque Véhicule]]) -> 71.78 | G32: =kilom(Tableau2[[#This Row],[Plaque Véhicule]]) -> 73680 | H32: =IFERROR(Tableau2[[#This Row],[Dernier plein réalisé]]/(Tableau2[[#This Row],[Kilométrage véhicule]]-Tableau2[[#This Row],[Dernier relevé kilométrique]])*100,"") -> 0.1011584317
A33: 2021-06-29 | B33: 99518 | C33: 3.XKS.363 | D33: 54.66 | E33: =passage(Tableau2[[#This Row],[Plaque Véhicule]]) -> 2021-06-17 | F33: =litres(Tableau2[[#This Row],[Plaque Véhicule]]) -> 78.57 | G33: =kilom(Tableau2[[#This Row],[Plaque Véhicule]]) -> 219339 | H33: =IFERROR(Tableau2[[#This Row],[Dernier plein réalisé]]/(Tableau2[[#This Row],[Kilométrage véhicule]]-Tableau2[[#This Row],[Dernier relevé kilométrique]])*100,"") -> -0.06557281278
A34: 2021-06-29 | B34: 59560 | C34: 3.LXX.700 | D34: 72.72 | E34: =passage(Tableau2[[#This Row],[Plaque Véhicule]]) -> 2021-06-25 | F34: =litres(Tableau2[[#This Row],[Plaque Véhicule]]) -> 44.22 | G34: =kilom(Tableau2[[#This Row],[Plaque Véhicule]]) -> 148591 | H34: =IFERROR(Tableau2[[#This Row],[Dernier plein réalisé]]/(Tableau2[[#This Row],[Kilométrage véhicule]]-Tableau2[[#This Row],[Dernier relevé kilométrique]])*100,"") -> -0.04966809314
A35: 2021-06-30 | B35: 116771 | C35: 3.ACM.349 | D35: 37.88 | E35: =passage(Tableau2[[#This Row],[Plaque Véhicule]]) -> 2021-06-25 | F35: =litres(Tableau2[[#This Row],[Plaque Véhicule]]) -> 45.16 | G35: =kilom(Tableau2[[#This Row],[Plaque Véhicule]]) -> 29470 | H35: =IFERROR(Tableau2[[#This Row],[Dernier plein réalisé]]/(Tableau2[[#This Row],[Kilométrage véhicule]]-Tableau2[[#This Row],[Dernier relevé kilométrique]])*100,"") -> 0.05172907527
A36: 2021-07-01 | B36: 149420 | C36: 3.NCZ.884 | D36: 57.97 | E36: =passage(Tableau2[[#This Row],[Plaque Véhicule]]) -> 2021-06-18 | F36: =litres(Tableau2[[#This Row],[Plaque Véhicule]]) -> 66.1 | G36: =kilom(Tableau2[[#This Row],[Plaque Véhicule]]) -> 1 | H36: =IFERROR(Tableau2[[#This Row],[Dernier plein réalisé]]/(Tableau2[[#This Row],[Kilométrage véhicule]]-Tableau2[[#This Row],[Dernier relevé kilométrique]])*100,"") -> 0.04423801525
A37: 2021-07-02 | B37: 74349 | C37: 3.QXC.357 | D37: 76.86 | E37: =passage(Tableau2[[#This Row],[Plaque Véhicule]]) -> 2021-06-25 | F37: =litres(Tableau2[[#This Row],[Plaque Véhicule]]) -> 0.2 | G37: =kilom(Tableau2[[#This Row],[Plaque Véhicule]]) -> 61000 | H37: =IFERROR(Tableau2[[#This Row],[Dernier plein réalisé]]/(Tableau2[[#This Row],[Kilométrage véhicule]]-Tableau2[[#This Row],[Dernier relevé kilométrique]])*100,"") -> 0.001498239569
A38: 2021-07-02 | B38: 149780 | C38: 3.UNX.398 | D38: 24.83 | E38: =passage(Tableau2[[#This Row],[Plaque Véhicule]]) -> 2021-06-18 | F38: =litres(Tableau2[[#This Row],[Plaque Véhicule]]) -> 36.82 | G38: =kilom(Tableau2[[#This Row],[Plaque Véhicule]]) -> 116177 | H38: =IFERROR(Tableau2[[#This Row],[Dernier plein réalisé]]/(Tableau2[[#This Row],[Kilométrage véhicule]]-Tableau2[[#This Row],[Dernier relevé kilométrique]])*100,"") -> 0.10957355
A39: 2021-07-02 | B39: 32794 | C39: 3.SJC.633 | D39: 72.66 | E39: =passage(Tableau2[[#This Row],[Plaque Véhicule]]) -> 2021-06-23 | F39: =litres(Tableau2[[#This Row],[Plaque Véhicule]]) -> 57.87 | G39: =kilom(Tableau2[[#This Row],[Plaque Véhicule]]) -> 98901 | H39: =IFERROR(Tableau2[[#This Row],[Dernier plein réalisé]]/(Tableau2[[#This Row],[Kilométrage véhicule]]-Tableau2[[#This Row],[Dernier relevé kilométrique]])*100,"") -> -0.08753989744
A40: 2021-07-02 | B40: 133390 | C40: 3.QRM.682 | D40: 59.1 | E40: =passage(Tableau2[[#This Row],[Plaque Véhicule]]) -> 2021-06-27 | F40: =litres(Tableau2[[#This Row],[Plaque Véhicule]]) -> 45.05 | G40: =kilom(Tableau2[[#This Row],[Plaque Véhicule]]) -> 48889 | H40: =IFERROR(Tableau2[[#This Row],[Dernier plein réalisé]]/(Tableau2[[#This Row],[Kilométrage véhicule]]-Tableau2[[#This Row],[Dernier relevé kilométrique]])*100,"") -> 0.05331297854
A41: 2021-07-02 | B41: 133390 | C41: 1.TAX.095 | D41: 0.02 | E41: =passage(Tableau2[[#This Row],[Plaque Véhicule]]) -> 2021-06-21 | F41: =litres(Tableau2[[#This Row],[Plaque Véhicule]]) -> 69.74 | G41: =kilom(Tableau2[[#This Row],[Plaque Véhicule]]) -> 1 | H41: =IFERROR(Tableau2[[#This Row],[Dernier plein réalisé]]/(Tableau2[[#This Row],[Kilométrage véhicule]]-Tableau2[[#This Row],[Dernier relevé kilométrique]])*100,"") -> 0.05228317178
A42: 2021-07-05 | B42: 100218 | C42: 3.XAL.248 | D42: 61.14 | E42: =passage(Tableau2[[#This Row],[Plaque Véhicule]]) -> 2021-06-22 | F42: =litres(Tableau2[[#This Row],[Plaque Véhicule]]) -> 57.2 | G42: =kilom(Tableau2[[#This Row],[Plaque Véhicule]]) -> 160347 | H42: =IFERROR(Tableau2[[#This Row],[Dernier plein réalisé]]/(Tableau2[[#This Row],[Kilométrage véhicule]]-Tableau2[[#This Row],[Dernier relevé kilométrique]])*100,"") -> -0.0951288064
A43: 2021-07-05 | B43: 249883 | C43: 3.SPH.860 | D43: 70.97 | E43: =passage(Tableau2[[#This Row],[Plaque Véhicule]]) -> 2021-06-23 | F43: =litres(Tableau2[[#This Row],[Plaque Véhicule]]) -> 52 | G43: =kilom(Tableau2[[#This Row],[Plaque Véhicule]]) -> 132572 | H43: =IFERROR(Tableau2[[#This Row],[Dernier plein réalisé]]/(Tableau2[[#This Row],[Kilométrage véhicule]]-Tableau2[[#This Row],[Dernier relevé kilométrique]])*100,"") -> 0.04432661899
A44: 2021-07-06 | B44: 49531 | C44: 3.XAA.223 | D44: 43.27 | E44: =passage(Tableau2[[#This Row],[Plaque Véhicule]]) -> 2021-06-28 | F44: =litres(Tableau2[[#This Row],[Plaque Véhicule]]) -> 64.02 | G44: =kilom(Tableau2[[#This Row],[Plaque Véhicule]]) -> 21752 | H44: =IFERROR(Tableau2[[#This Row],[Dernier plein réalisé]]/(Tableau2[[#This Row],[Kilométrage véhicule]]-Tableau2[[#This Row],[Dernier relevé kilométrique]])*100,"") -> 0.2304618597
A45: 2021-07-06 | B45: 22150 | C45: 3.QAP.233 | D45: 72.78 | E45: =passage(Tableau2[[#This Row],[Plaque Véhicule]]) -> 2021-06-23 | F45: =litres(Tableau2[[#This Row],[Plaque Véhicule]]) -> 64.68 | G45: =kilom(Tableau2[[#This Row],[Plaque Véhicule]]) -> 32243 | H45: =IFERROR(Tableau2[[#This Row],[Dernier plein réalisé]]/(Tableau2[[#This Row],[Kilométrage véhicule]]-Tableau2[[#This Row],[Dernier relevé kilométrique]])*100,"") -> -0.6408401863
A46: 2021-07-07 | B46: 69810 | C46: 3.JXX.096 | D46: 66.23 | E46: =passage(Tableau2[[#This Row],[Plaque Véhicule]]) -> 2021-06-23 | F46: =litres(Tableau2[[#This Row],[Plaque Véhicule]]) -> 71.73 | G46: =kilom(Tableau2[[#This Row],[Plaque Véhicule]]) -> 69312 | H46: =IFERROR(Tableau2[[#This Row],[Dernier plein réalisé]]/(Tableau2[[#This Row],[Kilométrage véhicule]]-Tableau2[[#This Row],[Dernier relevé kilométrique]])*100,"") -> 14.40361446
A47: 2021-07-07 | B47: 150551 | C47: 3.SJC.633 | D47: 45.11 | E47: =passage(Tableau2[[#This Row],[Plaque Véhicule]]) -> 2021-07-02 | F47: =litres(Tableau2[[#This Row],[Plaque Véhicule]]) -> 72.66 | G47: =kilom(Tableau2[[#This Row],[Plaque Véhicule]]) -> 32794 | H47: =IFERROR(Tableau2[[#This Row],[Dernier plein réalisé]]/(Tableau2[[#This Row],[Kilométrage véhicule]]-Tableau2[[#This Row],[Dernier relevé kilométrique]])*100,"") -> 0.06170333823
A48: 2021-07-07 | B48: 45110 | C48: 3.NZS.350 | D48: 64.02 | E48: =passage(Tableau2[[#This Row],[Plaque Véhicule]]) -> 2021-06-24 | F48: =litres(Tableau2[[#This Row],[Plaque Véhicule]]) -> 36.01 | G48: =kilom(Tableau2[[#This Row],[Plaque Véhicule]]) -> 86580 | H48: =IFERROR(Tableau2[[#This Row],[Dernier plein réalisé]]/(Tableau2[[#This Row],[Kilométrage véhicule]]-Tableau2[[#This Row],[Dernier relevé kilométrique]])*100,"") -> -0.0868338558
A49: 2021-07-07 | B49: 116842 | C49: 3.RKC.457 | D49: 64.83 | E49: =passage(Tableau2[[#This Row],[Plaque Véhicule]]) -> 2021-06-29 | F49: =litres(Tableau2[[#This Row],[Plaque Véhicule]]) -> 72.16 | G49: =kilom(Tableau2[[#This Row],[Plaque Véhicule]]) -> 144638 | H49: =IFERROR(Tableau2[[#This Row],[Dernier plein réalisé]]/(Tableau2[[#This Row],[Kilométrage véhicule]]-Tableau2[[#This Row],[Dernier relevé kilométrique]])*100,"") -> -0.2596056987
A50: 2021-07-08 | B50: 286547 | C50: 3.LXX.700 | D50: 46.38 | E50: =passage(Tableau2[[#This Row],[Plaque Véhicule]]) -> 2021-06-29 | F50: =litres(Tableau2[[#This Row],[Plaque Véhicule]]) -> 72.72 | G50: =kilom(Tableau2[[#This Row],[Plaque Véhicule]]) -> 59560 | H50: =IFERROR(Tableau2[[#This Row],[Dernier plein réalisé]]/(Tableau2[[#This Row],[Kilométrage véhicule]]-Tableau2[[#This Row],[Dernier relevé kilométrique]])*100,"") -> 0.03203707701
A51: 2021-07-08 | B51: 87289 | C51: 3.ACM.349 | D51: 36.94 | E51: =passage(Tableau2[[#This Row],[Plaque Véhicule]]) -> 2021-06-30 | F51: =litres(Tableau2[[#This Row],[Plaque Véhicule]]) -> 37.88 | G51: =kilom(Tableau2[[#This Row],[Plaque Véhicule]]) -> 116771 | H51: =IFERROR(Tableau2[[#This Row],[Dernier plein réalisé]]/(Tableau2[[#This Row],[Kilométrage véhicule]]-Tableau2[[#This Row],[Dernier relevé kilométrique]])*100,"") -> -0.1284851774
A52: 2021-07-09 | B52: 151029 | C52: 3.CVC.067 | D52: 25.21 | E52: =passage(Tableau2[[#This Row],[Plaque Véhicule]]) -> 2021-06-25 | F52: =litres(Tableau2[[#This Row],[Plaque Véhicule]]) -> 58.97 | G52: =kilom(Tableau2[[#This Row],[Plaque Véhicule]]) -> 285221 | H52: =IFERROR(Tableau2[[#This Row],[Dernier plein réalisé]]/(Tableau2[[#This Row],[Kilométrage véhicule]]-Tableau2[[#This Row],[Dernier relevé kilométrique]])*100,"") -> -0.04394449744
A53: 2021-07-09 | B53: 134224 | C53: 3.QXC.357 | D53: 53.44 | E53: =passage(Tableau2[[#This Row],[Plaque Véhicule]]) -> 2021-07-02 | F53: =litres(Tableau2[[#This Row],[Plaque Véhicule]]) -> 76.86 | G53: =kilom(Tableau2[[#This Row],[Plaque Véhicule]]) -> 74349 | H53: =IFERROR(Tableau2[[#This Row],[Dernier plein réalisé]]/(Tableau2[[#This Row],[Kilométrage véhicule]]-Tableau2[[#This Row],[Dernier relevé kilométrique]])*100,"") -> 0.1283674322
A54: 2021-07-09 | B54: 1 | C54: 3.QXC.357 | D54: 62.25 | E54: =passage(Tableau2[[#This Row],[Plaque Véhicule]]) -> 2021-07-09 | F54: =litres(Tableau2[[#This Row],[Plaque Véhicule]]) -> 53.44 | G54: =kilom(Tableau2[[#This Row],[Plaque Véhicule]]) -> 134224 | H54: =IFERROR(Tableau2[[#This Row],[Dernier plein réalisé]]/(Tableau2[[#This Row],[Kilométrage véhicule]]-Tableau2[[#This Row],[Dernier relevé kilométrique]])*100,"") -> -0.03981433882
A55: 2021-07-09 | B55: 63350 | C55: 3.LCS.384 | D55: 54.42 | E55: =passage(Tableau2[[#This Row],[Plaque Véhicule]]) -> 2021-06-25 | F55: =litres(Tableau2[[#This Row],[Plaque Véhicule]]) -> 58.92 | G55: =kilom(Tableau2[[#This Row],[Plaque Véhicule]]) -> 116440 | H55: =IFERROR(Tableau2[[#This Row],[Dernier plein réalisé]]/(Tableau2[[#This Row],[Kilométrage véhicule]]-Tableau2[[#This Row],[Dernier relevé kilométrique]])*100,"") -> -0.1109813524
A56: 2021-07-09 | B56: 145226 | C56: 2.TAX.033 | D56: 55.06 | E56: =passage(Tableau2[[#This Row],[Plaque Véhicule]]) -> 2021-06-26 | F56: =litres(Tableau2[[#This Row],[Plaque Véhicule]]) -> 69.62 | G56: =kilom(Tableau2[[#This Row],[Plaque Véhicule]]) -> 247224 | H56: =IFERROR(Tableau2[[#This Row],[Dernier plein réalisé]]/(Tableau2[[#This Row],[Kilométrage véhicule]]-Tableau2[[#This Row],[Dernier relevé kilométrique]])*100,"") -> -0.06825624032
A57: 2021-07-09 | B57: 60112 | C57: 3.QRM.682 | D57: 63.88 | E57: =passage(Tableau2[[#This Row],[Plaque Véhicule]]) -> 2021-07-02 | F57: =litres(Tableau2[[#This Row],[Plaque Véhicule]]) -> 59.1 | G57: =kilom(Tableau2[[#This Row],[Plaque Véhicule]]) -> 133390 | H57: =IFERROR(Tableau2[[#This Row],[Dernier plein réalisé]]/(Tableau2[[#This Row],[Kilométrage véhicule]]-Tableau2[[#This Row],[Dernier relevé kilométrique]])*100,"") -> -0.08065176451
A58: 2021-07-10 | B58: 1 | C58: 3.XAA.223 | D58: 68.01 | E58: =passage(Tableau2[[#This Row],[Plaque Véhicule]]) -> 2021-07-06 | F58: =litres(Tableau2[[#This Row],[Plaque Véhicule]]) -> 43.27 | G58: =kilom(Tableau2[[#This Row],[Plaque Véhicule]]) -> 49531 | H58: =IFERROR(Tableau2[[#This Row],[Dernier plein réalisé]]/(Tableau2[[#This Row],[Kilométrage véhicule]]-Tableau2[[#This Row],[Dernier relevé kilométrique]])*100,"") -> -0.08736119524
A59: 2021-07-12 | B59: 61710 | C59: 3.QNU.352 | D59: 69.65 | E59: =passage(Tableau2[[#This Row],[Plaque Véhicule]]) -> 2021-06-28 | F59: =litres(Tableau2[[#This Row],[Plaque Véhicule]]) -> 89.56 | G59: =kilom(Tableau2[[#This Row],[Plaque Véhicule]]) -> 44514 | H59: =IFERROR(Tableau2[[#This Row],[Dernier plein réalisé]]/(Tableau2[[#This Row],[Kilométrage véhicule]]-Tableau2[[#This Row],[Dernier relevé kilométrique]])*100,"") -> 0.5208187951
A60: 2021-07-12 | B60: 101012 | C60: 3.SJC.632 | D60: 62.87 | E60: =passage(Tableau2[[#This Row],[Plaque Véhicule]]) -> 2021-06-28 | F60: =litres(Tableau2[[#This Row],[Plaque Véhicule]]) -> 64.02 | G60: =kilom(Tableau2[[#This Row],[Plaque Véhicule]]) -> 21752 | H60: =IFERROR(Tableau2[[#This Row],[Dernier plein réalisé]]/(Tableau2[[#This Row],[Kilométrage véhicule]]-Tableau2[[#This Row],[Dernier relevé kilométrique]])*100,"") -> 0.08077214232
A61: 2021-07-13 | B61: 117231 | C61: 3.RKC.457 | D61: 31.9 | E61: =passage(Tableau2[[#This Row],[Plaque Véhicule]]) -> 2021-07-07 | F61: =litres(Tableau2[[#This Row],[Plaque Véhicule]]) -> 64.83 | G61: =kilom(Tableau2[[#This Row],[Plaque Véhicule]]) -> 116842 | H61: =IFERROR(Tableau2[[#This Row],[Dernier plein réalisé]]/(Tableau2[[#This Row],[Kilométrage véhicule]]-Tableau2[[#This Row],[Dernier relevé kilométrique]])*100,"") -> 16.66580977
A62: 2021-07-13 | B62: 74983 | C62: 3.XKS.363 | D62: 80.8 | E62: =passage(Tableau2[[#This Row],[Plaque Véhicule]]) -> 2021-06-29 | F62: =litres(Tableau2[[#This Row],[Plaque Véhicule]]) -> 54.66 | G62: =kilom(Tableau2[[#This Row],[Plaque Véhicule]]) -> 99518 | H62: =IFERROR(Tableau2[[#This Row],[Dernier plein réalisé]]/(Tableau2[[#This Row],[Kilométrage véhicule]]-Tableau2[[#This Row],[Dernier relevé kilométrique]])*100,"") -> -0.2227837783
A63: 2021-07-14 | B63: 22579 | C63: 3.LXX.700 | D63: 87.07 | E63: =passage(Tableau2[[#This Row],[Plaque Véhicule]]) -> 2021-07-08 | F63: =litres(Tableau2[[#This Row],[Plaque Véhicule]]) -> 46.38 | G63: =kilom(Tableau2[[#This Row],[Plaque Véhicule]]) -> 286547 | H63: =IFERROR(Tableau2[[#This Row],[Dernier plein réalisé]]/(Tableau2[[#This Row],[Kilométrage véhicule]]-Tableau2[[#This Row],[Dernier relevé kilométrique]])*100,"") -> -0.01757031155
A64: 2021-07-15 | B64: 1 | C64: 3.ACM.349 | D64: 61.29 | E64: =passage(Tableau2[[#This Row],[Plaque Véhicule]]) -> 2021-07-08 | F64: =litres(Tableau2[[#This Row],[Plaque Véhicule]]) -> 36.94 | G64: =kilom(Tableau2[[#This Row],[Plaque Véhicule]]) -> 87289 | H64: =IFERROR(Tableau2[[#This Row],[Dernier plein réalisé]]/(Tableau2[[#This Row],[Kilométrage véhicule]]-Tableau2[[#This Row],[Dernier relevé kilométrique]])*100,"") -> -0.04231967739
A65: 2021-07-16 | B65: 251198 | C65: 3.NCZ.884 | D65: 68.86 | E65: =passage(Tableau2[[#This Row],[Plaque Véhicule]]) -> 2021-07-01 | F65: =litres(Tableau2[[#This Row],[Plaque Véhicule]]) -> 57.97 | G65: =kilom(Tableau2[[#This Row],[Plaque Véhicule]]) -> 149420 | H65: =IFERROR(Tableau2[[#This Row],[Dernier plein réalisé]]/(Tableau2[[#This Row],[Kilométrage véhicule]]-Tableau2[[#This Row],[Dernier relevé kilométrique]])*100,"") -> 0.05695729922
A66: 2021-07-16 | B66: 101660 | C66: 3.QXC.357 | D66: 60.94 | E66: =passage(Tableau2[[#This Row],[Plaque Véhicule]]) -> 2021-07-09 | F66: =litres(Tableau2[[#This Row],[Plaque Véhicule]]) -> 62.25 | G66: =kilom(Tableau2[[#This Row],[Plaque Véhicule]]) -> 1 | H66: =IFERROR(Tableau2[[#This Row],[Dernier plein réalisé]]/(Tableau2[[#This Row],[Kilométrage véhicule]]-Tableau2[[#This Row],[Dernier relevé kilométrique]])*100,"") -> 0.06123412585
A67: 2021-07-19 | B67: 64400 | C67: 3.UNX.398 | D67: 41.09 | E67: =passage(Tableau2[[#This Row],[Plaque Véhicule]]) -> 2021-07-02 | F67: =litres(Tableau2[[#This Row],[Plaque Véhicule]]) -> 24.83 | G67: =kilom(Tableau2[[#This Row],[Plaque Véhicule]]) -> 149780 | H67: =IFERROR(Tableau2[[#This Row],[Dernier plein réalisé]]/(Tableau2[[#This Row],[Kilométrage véhicule]]-Tableau2[[#This Row],[Dernier relevé kilométrique]])*100,"") -> -0.02908175217
A68: 2021-07-19 | B68: 70350 | C68: 3.SJC.633 | D68: 72.92 | E68: =passage(Tableau2[[#This Row],[Plaque Véhicule]]) -> 2021-07-07 | F68: =litres(Tableau2[[#This Row],[Plaque Véhicule]]) -> 45.11 | G68: =kilom(Tableau2[[#This Row],[Plaque Véhicule]]) -> 150551 | H68: =IFERROR(Tableau2[[#This Row],[Dernier plein réalisé]]/(Tableau2[[#This Row],[Kilométrage véhicule]]-Tableau2[[#This Row],[Dernier relevé kilométrique]])*100,"") -> -0.05624618147
A69: 2021-07-20 | B69: 75599 | C69: 3.QRM.682 | D69: 77.19 | E69: =passage(Tableau2[[#This Row],[Plaque Véhicule]]) -> 2021-07-09 | F69: =litres(Tableau2[[#This Row],[Plaque Véhicule]]) -> 63.88 | G69: =kilom(Tableau2[[#This Row],[Plaque Véhicule]]) -> 60112 | H69: =IFERROR(Tableau2[[#This Row],[Dernier plein réalisé]]/(Tableau2[[#This Row],[Kilométrage véhicule]]-Tableau2[[#This Row],[Dernier relevé kilométrique]])*100,"") -> 0.412474979
A70: 2021-07-22 | B70: 1 | C70: 1.TAX.095 | D70: 53.65 | E70: =passage(Tableau2[[#This Row],[Plaque Véhicule]]) -> 2021-07-02 | F70: =litres(Tableau2[[#This Row],[Plaque Véhicule]]) -> 0.02 | G70: =kilom(Tableau2[[#This Row],[Plaque Véhicule]]) -> 133390 | H70: =IFERROR(Tableau2[[#This Row],[Dernier plein réalisé]]/(Tableau2[[#This Row],[Kilométrage véhicule]]-Tableau2[[#This Row],[Dernier relevé kilométrique]])*100,"") -> -1.499374011e-05
A71: 2021-07-22 | B71: 287419 | C71: 3.XAL.248 | D71: 59.99 | E71: =passage(Tableau2[[#This Row],[Plaque Véhicule]]) -> 2021-07-05 | F71: =litres(Tableau2[[#This Row],[Plaque Véhicule]]) -> 61.14 | G71: =kilom(Tableau2[[#This Row],[Plaque Véhicule]]) -> 100218 | H71: =IFERROR(Tableau2[[#This Row],[Dernier plein réalisé]]/(Tableau2[[#This Row],[Kilométrage véhicule]]-Tableau2[[#This Row],[Dernier relevé kilométrique]])*100,"") -> 0.03266008194
A72: 2021-07-22 | B72: 251936 | C72: 3.SPH.860 | D72: 70.63 | E72: =passage(Tableau2[[#This Row],[Plaque Véhicule]]) -> 2021-07-05 | F72: =litres(Tableau2[[#This Row],[Plaque Véhicule]]) -> 70.97 | G72: =kilom(Tableau2[[#This Row],[Plaque Véhicule]]) -> 249883 | H72: =IFERROR(Tableau2[[#This Row],[Dernier plein réalisé]]/(Tableau2[[#This Row],[Kilométrage véhicule]]-Tableau2[[#This Row],[Dernier relevé kilométrique]])*100,"") -> 3.456892353
A73: 2021-07-22 | B73: 26017 | C73: 3.XAA.223 | D73: 49.57 | E73: =passage(Tableau2[[#This Row],[Plaque Véhicule]]) -> 2021-07-10 | F73: =litres(Tableau2[[#This Row],[Plaque Véhicule]]) -> 68.01 | G73: =kilom(Tableau2[[#This Row],[Plaque Véhicule]]) -> 1 | H73: =IFERROR(Tableau2[[#This Row],[Dernier plein réalisé]]/(Tableau2[[#This Row],[Kilométrage véhicule]]-Tableau2[[#This Row],[Dernier relevé kilométrique]])*100,"") -> 0.2614160517
A74: 2021-07-26 | B74: 22932 | C74: 3.QAP.233 | D74: 67.82 | E74: =passage(Tableau2[[#This Row],[Plaque Véhicule]]) -> 2021-07-06 | F74: =litres(Tableau2[[#This Row],[Plaque Véhicule]]) -> 72.78 | G74: =kilom(Tableau2[[#This Row],[Plaque Véhicule]]) -> 22150 | H74: =IFERROR(Tableau2[[#This Row],[Dernier plein réalisé]]/(Tableau2[[#This Row],[Kilométrage véhicule]]-Tableau2[[#This Row],[Dernier relevé kilométrique]])*100,"") -> 9.306905371
A75: 2021-07-26 | B75: 102464 | C75: 3.JXX.096 | D75: 58.18 | E75: =passage(Tableau2[[#This Row],[Plaque Véhicule]]) -> 2021-07-07 | F75: =litres(Tableau2[[#This Row],[Plaque Véhicule]]) -> 66.23 | G75: =kilom(Tableau2[[#This Row],[Plaque Véhicule]]) -> 69810 | H75: =IFERROR(Tableau2[[#This Row],[Dernier plein réalisé]]/(Tableau2[[#This Row],[Kilométrage véhicule]]-Tableau2[[#This Row],[Dernier relevé kilométrique]])*100,"") -> 0.2028235438
A76: 2021-07-26 | B76: 76197 | C76: 3.SJC.633 | D76: 70.26 | E76: =passage(Tableau2[[#This Row],[Plaque Véhicule]]) -> 2021-07-19 | F76: =litres(Tableau2[[#This Row],[Plaque Véhicule]]) -> 72.92 | G76: =kilom(Tableau2[[#This Row],[Plaque Véhicule]]) -> 70350 | H76: =IFERROR(Tableau2[[#This Row],[Dernier plein réalisé]]/(Tableau2[[#This Row],[Kilométrage véhicule]]-Tableau2[[#This Row],[Dernier relevé kilométrique]])*100,"") -> 1.247135283
A77: 2021-07-27 | B77: 117765 | C77: 3.NZS.350 | D77: 35.11 | E77: =passage(Tableau2[[#This Row],[Plaque Véhicule]]) -> 2021-07-07 | F77: =litres(Tableau2[[#This Row],[Plaque Véhicule]]) -> 64.02 | G77: =kilom(Tableau2[[#This Row],[Plaque Véhicule]]) -> 45110 | H77: =IFERROR(Tableau2[[#This Row],[Dernier plein réalisé]]/(Tableau2[[#This Row],[Kilométrage véhicule]]-Tableau2[[#This Row],[Dernier relevé kilométrique]])*100,"") -> 0.08811506435
A78: 2021-07-28 | B78: 1 | C78: 3.RKC.457 | D78: 47.77 | E78: =passage(Tableau2[[#This Row],[Plaque Véhicule]]) -> 2021-07-13 | F78: =litres(Tableau2[[#This Row],[Plaque Véhicule]]) -> 31.9 | G78: =kilom(Tableau2[[#This Row],[Plaque Véhicule]]) -> 117231 | H78: =IFERROR(Tableau2[[#This Row],[Dernier plein réalisé]]/(Tableau2[[#This Row],[Kilométrage véhicule]]-Tableau2[[#This Row],[Dernier relevé kilométrique]])*100,"") -> -0.02721146464
A79: 2021-07-28 | B79: 45782 | C79: 3.LXX.700 | D79: 83.59 | E79: =passage(Tableau2[[#This Row],[Plaque Véhicule]]) -> 2021-07-14 | F79: =litres(Tableau2[[#This Row],[Plaque Véhicule]]) -> 87.07 | G79: =kilom(Tableau2[[#This Row],[Plaque Véhicule]]) -> 22579 | H79: =IFERROR(Tableau2[[#This Row],[Dernier plein réalisé]]/(Tableau2[[#This Row],[Kilométrage véhicule]]-Tableau2[[#This Row],[Dernier relevé kilométrique]])*100,"") -> 0.3752532
A80: 2021-07-28 | B80: 228104 | C80: 3.ACM.349 | D80: 85.65 | E80: =passage(Tableau2[[#This Row],[Plaque Véhicule]]) -> 2021-07-15 | F80: =litres(Tableau2[[#This Row],[Plaque Véhicule]]) -> 61.29 | G80: =kilom(Tableau2[[#This Row],[Plaque Véhicule]]) -> 1 | H80: =IFERROR(Tableau2[[#This Row],[Dernier plein réalisé]]/(Tableau2[[#This Row],[Kilométrage véhicule]]-Tableau2[[#This Row],[Dernier relevé kilométrique]])*100,"") -> 0.02686944056
A81: 2021-07-29 | B81: 117427 | C81: 3.CVC.067 | D81: 75.31 | E81: =passage(Tableau2[[#This Row],[Plaque Véhicule]]) -> 2021-07-09 | F81: =litres(Tableau2[[#This Row],[Plaque Véhicule]]) -> 25.21 | G81: =kilom(Tableau2[[#This Row],[Plaque Véhicule]]) -> 151029 | H81: =IFERROR(Tableau2[[#This Row],[Dernier plein réalisé]]/(Tableau2[[#This Row],[Kilométrage véhicule]]-Tableau2[[#This Row],[Dernier relevé kilométrique]])*100,"") -> -0.07502529611
A82: 2021-07-29 | B82: 60631 | C82: 3.QXC.357 | D82: 65.13 | E82: =passage(Tableau2[[#This Row],[Plaque Véhicule]]) -> 2021-07-16 | F82: =litres(Tableau2[[#This Row],[Plaque Véhicule]]) -> 60.94 | G82: =kilom(Tableau2[[#This Row],[Plaque Véhicule]]) -> 101660 | H82: =IFERROR(Tableau2[[#This Row],[Dernier plein réalisé]]/(Tableau2[[#This Row],[Kilométrage véhicule]]-Tableau2[[#This Row],[Dernier relevé kilométrique]])*100,"") -> -0.1485290892
A83: 2021-07-30 | B83: 102919 | C83: 3.QXC.357 | D83: 42.42 | E83: =passage(Tableau2[[#This Row],[Plaque Véhicule]]) -> 2021-07-29 | F83: =litres(Tableau2[[#This Row],[Plaque Véhicule]]) -> 65.13 | G83: =kilom(Tableau2[[#This Row],[Plaque Véhicule]]) -> 60631 | H83: =IFERROR(Tableau2[[#This Row],[Dernier plein réalisé]]/(Tableau2[[#This Row],[Kilométrage véhicule]]-Tableau2[[#This Row],[Dernier relevé kilométrique]])*100,"") -> 0.1540153235
A84: 2021-07-30 | B84: 33337 | C84: 3.LCS.384 | D84: 78.07 | E84: =passage(Tableau2[[#This Row],[Plaque Véhicule]]) -> 2021-07-09 | F84: =litres(Tableau2[[#This Row],[Plaque Véhicule]]) -> 54.42 | G84: =kilom(Tableau2[[#This Row],[Plaque Véhicule]]) -> 63350 | H84: =IFERROR(Tableau2[[#This Row],[Dernier plein réalisé]]/(Tableau2[[#This Row],[Kilométrage véhicule]]-Tableau2[[#This Row],[Dernier relevé kilométrique]])*100,"") -> -0.1813214274
A85: 2021-08-01 | B85: 1 | C85: 2.TAX.033 | D85: 41.82 | E85: =passage(Tableau2[[#This Row],[Plaque Véhicule]]) -> 2021-07-09 | F85: =litres(Tableau2[[#This Row],[Plaque Véhicule]]) -> 55.06 | G85: =kilom(Tableau2[[#This Row],[Plaque Véhicule]]) -> 145226 | H85: =IFERROR(Tableau2[[#This Row],[Dernier plein réalisé]]/(Tableau2[[#This Row],[Kilométrage véhicule]]-Tableau2[[#This Row],[Dernier relevé kilométrique]])*100,"") -> -0.03791358237
A86: 2021-08-02 | B86: 66000 | C86: 3.QRM.682 | D86: 45.58 | E86: =passage(Tableau2[[#This Row],[Plaque Véhicule]]) -> 2021-07-20 | F86: =litres(Tableau2[[#This Row],[Plaque Véhicule]]) -> 77.19 | G86: =kilom(Tableau2[[#This Row],[Plaque Véhicule]]) -> 75599 | H86: =IFERROR(Tableau2[[#This Row],[Dernier plein réalisé]]/(Tableau2[[#This Row],[Kilométrage véhicule]]-Tableau2[[#This Row],[Dernier relevé kilométrique]])*100,"") -> -0.8041462652
A87: 2021-08-02 | B87: 26917 | C87: 3.XAA.223 | D87: 52.17 | E87: =passage(Tableau2[[#This Row],[Plaque Véhicule]]) -> 2021-07-22 | F87: =litres(Tableau2[[#This Row],[Plaque Véhicule]]) -> 49.57 | G87: =kilom(Tableau2[[#This Row],[Plaque Véhicule]]) -> 26017 | H87: =IFERROR(Tableau2[[#This Row],[Dernier plein réalisé]]/(Tableau2[[#This Row],[Kilométrage véhicule]]-Tableau2[[#This Row],[Dernier relevé kilométrique]])*100,"") -> 5.507777778
A88: 2021-08-02 | B88: 152980 | C88: 3.QNU.352 | D88: 46.88 | E88: =passage(Tableau2[[#This Row],[Plaque Véhicule]]) -> 2021-07-12 | F88: =litres(Tableau2[[#This Row],[Plaque Véhicule]]) -> 69.65 | G88: =kilom(Tableau2[[#This Row],[Plaque Véhicule]]) -> 61710 | H88: =IFERROR(Tableau2[[#This Row],[Dernier plein réalisé]]/(Tableau2[[#This Row],[Kilométrage véhicule]]-Tableau2[[#This Row],[Dernier relevé kilométrique]])*100,"") -> 0.0763120412
A89: 2021-08-02 | B89: 66000 | C89: 3.SJC.632 | D89: 45.58 | E89: =passage(Tableau2[[#This Row],[Plaque Véhicule]]) -> 2021-07-12 | F89: =litres(Tableau2[[#This Row],[Plaque Véhicule]]) -> 62.87 | G89: =kilom(Tableau2[[#This Row],[Plaque Véhicule]]) -> 101012 | H89: =IFERROR(Tableau2[[#This Row],[Dernier plein réalisé]]/(Tableau2[[#This Row],[Kilométrage véhicule]]-Tableau2[[#This Row],[Dernier relevé kilométrique]])*100,"") -> -0.1795670056
A90: 2021-08-02 | B90: 26917 | C90: 3.RKC.457 | D90: 52.17 | E90: =passage(Tableau2[[#This Row],[Plaque Véhicule]]) -> 2021-07-28 | F90: =litres(Tableau2[[#This Row],[Plaque Véhicule]]) -> 47.77 | G90: =kilom(Tableau2[[#This Row],[Plaque Véhicule]]) -> 1 | H90: =IFERROR(Tableau2[[#This Row],[Dernier plein réalisé]]/(Tableau2[[#This Row],[Kilométrage véhicule]]-Tableau2[[#This Row],[Dernier relevé kilométrique]])*100,"") -> 0.17747808
A91: 2021-08-03 | B91: 162968 | C91: 3.XKS.363 | D91: 57.4 | E91: =passage(Tableau2[[#This Row],[Plaque Véhicule]]) -> 2021-07-13 | F91: =litres(Tableau2[[#This Row],[Plaque Véhicule]]) -> 80.8 | G91: =kilom(Tableau2[[#This Row],[Plaque Véhicule]]) -> 74983 | H91: =IFERROR(Tableau2[[#This Row],[Dernier plein réalisé]]/(Tableau2[[#This Row],[Kilométrage véhicule]]-Tableau2[[#This Row],[Dernier relevé kilométrique]])*100,"") -> 0.09183383531
A92: 2021-08-03 | B92: 136007 | C92: 3.LXX.700 | D92: 50.94 | E92: =passage(Tableau2[[#This Row],[Plaque Véhicule]]) -> 2021-07-28 | F92: =litres(Tableau2[[#This Row],[Plaque Véhicule]]) -> 83.59 | G92: =kilom(Tableau2[[#This Row],[Plaque Véhicule]]) -> 45782 | H92: =IFERROR(Tableau2[[#This Row],[Dernier plein réalisé]]/(Tableau2[[#This Row],[Kilométrage véhicule]]-Tableau2[[#This Row],[Dernier relevé kilométrique]])*100,"") -> 0.09264616237
A93: 2021-08-03 | B93: 165681 | C93: 3.ACM.349 | D93: 48.21 | E93: =passage(Tableau2[[#This Row],[Plaque Véhicule]]) -> 2021-07-28 | F93: =litres(Tableau2[[#This Row],[Plaque Véhicule]]) -> 85.65 | G93: =kilom(Tableau2[[#This Row],[Plaque Véhicule]]) -> 228104 | H93: =IFERROR(Tableau2[[#This Row],[Dernier plein réalisé]]/(Tableau2[[#This Row],[Kilométrage véhicule]]-Tableau2[[#This Row],[Dernier relevé kilométrique]])*100,"") -> -0.1372090415
A94: 2021-08-04 | B94: 881020 | C94: 3.NCZ.884 | D94: 35.16 | E94: =passage(Tableau2[[#This Row],[Plaque Véhicule]]) -> 2021-07-16 | F94: =litres(Tableau2[[#This Row],[Plaque Véhicule]]) -> 68.86 | G94: =kilom(Tableau2[[#This Row],[Plaque Véhicule]]) -> 251198 | H94: =IFERROR(Tableau2[[#This Row],[Dernier plein réalisé]]/(Tableau2[[#This Row],[Kilométrage véhicule]]-Tableau2[[#This Row],[Dernier relevé kilométrique]])*100,"") -> 0.01093324781
A95: 2021-08-04 | B95: 1 | C95: 3.QXC.357 | D95: 59.21 | E95: =passage(Tableau2[[#This Row],[Plaque Véhicule]]) -> 2021-07-30 | F95: =litres(Tableau2[[#This Row],[Plaque Véhicule]]) -> 42.42 | G95: =kilom(Tableau2[[#This Row],[Plaque Véhicule]]) -> 102919 | H95: =IFERROR(Tableau2[[#This Row],[Dernier plein réalisé]]/(Tableau2[[#This Row],[Kilométrage véhicule]]-Tableau2[[#This Row],[Dernier relevé kilométrique]])*100,"") -> -0.04121727978
A96: 2021-08-04 | B96: 220855 | C96: 3.UNX.398 | D96: 82.42 | E96: =passage(Tableau2[[#This Row],[Plaque Véhicule]]) -> 2021-07-19 | F96: =litres(Tableau2[[#This Row],[Plaque Véhicule]]) -> 41.09 | G96: =kilom(Tableau2[[#This Row],[Plaque Véhicule]]) -> 64400 | H96: =IFERROR(Tableau2[[#This Row],[Dernier plein réalisé]]/(Tableau2[[#This Row],[Kilométrage véhicule]]-Tableau2[[#This Row],[Dernier relevé kilométrique]])*100,"") -> 0.02626314276
A97: 2021-08-04 | B97: 76751 | C97: 3.SJC.633 | D97: 67.49 | E97: =passage(Tableau2[[#This Row],[Plaque Véhicule]]) -> 2021-07-26 | F97: =litres(Tableau2[[#This Row],[Plaque Véhicule]]) -> 70.26 | G97: =kilom(Tableau2[[#This Row],[Plaque Véhicule]]) -> 76197 | H97: =IFERROR(Tableau2[[#This Row],[Dernier plein réalisé]]/(Tableau2[[#This Row],[Kilométrage véhicule]]-Tableau2[[#This Row],[Dernier relevé kilométrique]])*100,"") -> 12.68231047
A98: 2021-08-05 | B98: 103548 | C98: 3.QRM.682 | D98: 61.49 | E98: =passage(Tableau2[[#This Row],[Plaque Véhicule]]) -> 2021-08-02 | F98: =litres(Tableau2[[#This Row],[Plaque Véhicule]]) -> 45.58 | G98: =kilom(Tableau2[[#This Row],[Plaque Véhicule]]) -> 66000 | H98: =IFERROR(Tableau2[[#This Row],[Dernier plein réalisé]]/(Tableau2[[#This Row],[Kilométrage véhicule]]-Tableau2[[#This Row],[Dernier relevé kilométrique]])*100,"") -> 0.1213912858
A99: 2021-08-06 | B99: 153617 | C99: 1.TAX.095 | D99: 38.4 | E99: =passage(Tableau2[[#This Row],[Plaque Véhicule]]) -> 2021-07-22 | F99: =litres(Tableau2[[#This Row],[Plaque Véhicule]]) -> 53.65 | G99: =kilom(Tableau2[[#This Row],[Plaque Véhicule]]) -> 1 | H99: =IFERROR(Tableau2[[#This Row],[Dernier plein réalisé]]/(Tableau2[[#This Row],[Kilométrage véhicule]]-Tableau2[[#This Row],[Dernier relevé kilométrique]])*100,"") -> 0.03492474742
A100: 2021-08-06 | B100: 118247 | C100: 3.XAL.248 | D100: 35.54 | E100: =passage(Tableau2[[#This Row],[Plaque Véhicule]]) -> 2021-07-22 | F100: =litres(Tableau2[[#This Row],[Plaque Véhicule]]) -> 59.99 | G100: =kilom(Tableau2[[#This Row],[Plaque Véhicule]]) -> 287419 | H100: =IFERROR(Tableau2[[#This Row],[Dernier plein réalisé]]/(Tableau2[[#This Row],[Kilométrage véhicule]]-Tableau2[[#This Row],[Dernier relevé kilométrique]])*100,"") -> -0.03546095098
A101: 2021-08-06 | B101: 70933 | C101: 3.SPH.860 | D101: 71.81 | E101: =passage(Tableau2[[#This Row],[Plaque Véhicule]]) -> 2021-07-22 | F101: =litres(Tableau2[[#This Row],[Plaque Véhicule]]) -> 70.63 | G101: =kilom(Tableau2[[#This Row],[Plaque Véhicule]]) -> 251936 | H101: =IFERROR(Tableau2[[#This Row],[Dernier plein réalisé]]/(Tableau2[[#This Row],[Kilométrage véhicule]]-Tableau2[[#This Row],[Dernier relevé kilométrique]])*100,"") -> -0.03902145268
A102: 2021-08-07 | B102: 1 | C102: 3.XAA.223 | D102: 42.35 | E102: =passage(Tableau2[[#This Row],[Plaque Véhicule]]) -> 2021-08-02 | F102: =litres(Tableau2[[#This Row],[Plaque Véhicule]]) -> 52.17 | G102: =kilom(Tableau2[[#This Row],[Plaque Véhicule]]) -> 26917 | H102: =IFERROR(Tableau2[[#This Row],[Dernier plein réalisé]]/(Tableau2[[#This Row],[Kilométrage véhicule]]-Tableau2[[#This Row],[Dernier relevé kilométrique]])*100,"") -> -0.1938252341
A103: 2021-08-07 | B103: 288880 | C103: 3.QAP.233 | D103: 66.05 | E103: =passage(Tableau2[[#This Row],[Plaque Véhicule]]) -> 2021-07-26 | F103: =litres(Tableau2[[#This Row],[Plaque Véhicule]]) -> 67.82 | G103: =kilom(Tableau2[[#This Row],[Plaque Véhicule]]) -> 22932 | H103: =IFERROR(Tableau2[[#This Row],[Dernier plein réalisé]]/(Tableau2[[#This Row],[Kilométrage véhicule]]-Tableau2[[#This Row],[Dernier relevé kilométrique]])*100,"") -> 0.0255012258
A104: 2021-08-09 | B104: 66750 | C104: 3.JXX.096 | D104: 43.88 | E104: =passage(Tableau2[[#This Row],[Plaque Véhicule]]) -> 2021-07-26 | F104: =litres(Tableau2[[#This Row],[Plaque Véhicule]]) -> 58.18 | G104: =kilom(Tableau2[[#This Row],[Plaque Véhicule]]) -> 102464 | H104: =IFERROR(Tableau2[[#This Row],[Dernier plein réalisé]]/(Tableau2[[#This Row],[Kilométrage véhicule]]-Tableau2[[#This Row],[Dernier relevé kilométrique]])*100,"") -> -0.1629053032
A105: 2021-08-09 | B105: 61113 | C105: 3.SJC.633 | D105: 63.37 | E105: =passage(Tableau2[[#This Row],[Plaque Véhicule]]) -> 2021-08-04 | F105: =litres(Tableau2[[#This Row],[Plaque Véhicule]]) -> 67.49 | G105: =kilom(Tableau2[[#This Row],[Plaque Véhicule]]) -> 76751 | H105: =IFERROR(Tableau2[[#This Row],[Dernier plein réalisé]]/(Tableau2[[#This Row],[Kilométrage véhicule]]-Tableau2[[#This Row],[Dernier relevé kilométrique]])*100,"") -> -0.431576928
A106: 2021-08-10 | B106: 136901 | C106: 3.NZS.350 | D106: 55.18 | E106: =passage(Tableau2[[#This Row],[Plaque Véhicule]]) -> 2021-07-27 | F106: =litres(Tableau2[[#This Row],[Plaque Véhicule]]) -> 35.11 | G106: =kilom(Tableau2[[#This Row],[Plaque Véhicule]]) -> 117765 | H106: =IFERROR(Tableau2[[#This Row],[Dernier plein réalisé]]/(Tableau2[[#This Row],[Kilométrage véhicule]]-Tableau2[[#This Row],[Dernier relevé kilométrique]])*100,"") -> 0.1834761706
A107: 2021-08-10 | B107: 118661 | C107: 3.RKC.457 | D107: 27.68 | E107: =passage(Tableau2[[#This Row],[Plaque Véhicule]]) -> 2021-08-02 | F107: =litres(Tableau2[[#This Row],[Plaque Véhicule]]) -> 52.17 | G107: =kilom(Tableau2[[#This Row],[Plaque Véhicule]]) -> 26917 | H107: =IFERROR(Tableau2[[#This Row],[Dernier plein réalisé]]/(Tableau2[[#This Row],[Kilométrage véhicule]]-Tableau2[[#This Row],[Dernier relevé kilométrique]])*100,"") -> 0.0568647541
A108: 2021-08-10 | B108: 46500 | C108: 3.LXX.700 | D108: 82.8 | E108: =passage(Tableau2[[#This Row],[Plaque Véhicule]]) -> 2021-08-03 | F108: =litres(Tableau2[[#This Row],[Plaque Véhicule]]) -> 50.94 | G108: =kilom(Tableau2[[#This Row],[Plaque Véhicule]]) -> 136007 | H108: =IFERROR(Tableau2[[#This Row],[Dernier plein réalisé]]/(Tableau2[[#This Row],[Kilométrage véhicule]]-Tableau2[[#This Row],[Dernier relevé kilométrique]])*100,"") -> -0.05691174992
A109: 2021-08-10 | B109: 77344 | C109: 3.ACM.349 | D109: 72.6 | E109: =passage(Tableau2[[#This Row],[Plaque Véhicule]]) -> 2021-08-03 | F109: =litres(Tableau2[[#This Row],[Plaque Véhicule]]) -> 48.21 | G109: =kilom(Tableau2[[#This Row],[Plaque Véhicule]]) -> 165681 | H109: =IFERROR(Tableau2[[#This Row],[Dernier plein réalisé]]/(Tableau2[[#This Row],[Kilométrage véhicule]]-Tableau2[[#This Row],[Dernier relevé kilométrique]])*100,"") -> -0.05457509311
A110: 2021-08-11 | B110: 104193 | C110: 3.CVC.067 | D110: 63.13 | E110: =passage(Tableau2[[#This Row],[Plaque Véhicule]]) -> 2021-07-29 | F110: =litres(Tableau2[[#This Row],[Plaque Véhicule]]) -> 75.31 | G110: =kilom(Tableau2[[#This Row],[Plaque Véhicule]]) -> 117427 | H110: =IFERROR(Tableau2[[#This Row],[Dernier plein réalisé]]/(Tableau2[[#This Row],[Kilométrage véhicule]]-Tableau2[[#This Row],[Dernier relevé kilométrique]])*100,"") -> -0.5690645308
